fUST/lending_fUST_20240621
["ID","MTS","AMOUNT","RATE_DAILY","PERIOD"]
[330002927,1718919041504,-500.0,0.00054794,120]
[330002928,1718919041515,-500.0,0.00054794,120]
[330002929,1718919041526,-500.0,0.00054794,120]
[330002930,1718919041535,-643.190536,0.00054794,120]
[330002931,1718919041547,-279.23182694,0.00054794,120]
[330002932,1718919041557,-500.0,0.00054794,120]
[330002933,1718919041566,-500.0,0.00054794,120]
[330002934,1718919041575,-151.0,0.00054794,14]
[330002935,1718919041585,-151.0,0.00054794,14]
[330002936,1718919041594,-151.0,0.00054794,14]
[330002937,1718919041603,-516.92,0.00054794,120]
[330002938,1718919041613,-500.0,0.00054794,120]
[330002939,1718919041624,-500.0,0.00054794,120]
[330002940,1718919041633,-823.81,0.00054794,120]
[330002941,1718919041643,-500.0,0.00054794,120]
[330002942,1718919041655,-500.0,0.00054794,120]
[330002943,1718919041664,-500.0,0.00054794,120]
[330002944,1718919041674,-503.94428105,0.00054794,120]
[330002945,1718919041684,-502.12577339,0.00054794,120]
[330002946,1718919041694,-500.0,0.00054794,120]
[330002947,1718919041703,-500.0,0.00054794,120]
[330002948,1718919041714,-500.0,0.00054794,120]
[330002949,1718919041726,-507.39541035,0.00054794,120]
[330002950,1718919041736,-649.88312516,0.00054794,120]
[330002951,1718919041747,-500.0,0.00054794,120]
[330002952,1718919041756,-500.0,0.00054794,120]
[330002953,1718919041769,-1890.22,0.00054794,120]
[330002954,1718919041778,-500.0,0.00054794,2]
[330002955,1718919041788,-502.18234214,0.00054794,120]
[330002956,1718919041798,-500.0,0.00054794,120]
[330002957,1718919041807,-410.4031196,0.00054794,120]
[330002958,1718919041816,-500.0,0.00054794,120]
[330002959,1718919041826,-500.0,0.00054794,120]
[330002960,1718919041835,-2389.57,0.00054794,120]
[330002961,1718919041845,-500.0,0.00054794,120]
[330002962,1718919041854,-636.93023835,0.00054794,120]
[330002963,1718919041864,-500.0,0.00054794,120]
[330002964,1718919041874,-500.0,0.00054794,120]
[330002965,1718919041883,-500.0,0.00054794,120]
[330002966,1718919041894,-501.89074725,0.00054794,120]
[330002967,1718919041903,-502.35562886,0.00054794,2]
[330002968,1718919041912,-500.0,0.00054794,120]
[330002969,1718919041921,-500.0,0.00054794,120]
[330002970,1718919041932,-500.0,0.00054794,120]
[330002971,1718919041942,-500.0,0.00054794,120]
[330002972,1718919041952,-500.0,0.00054794,120]
[330002973,1718919041963,-500.0,0.00054794,120]
[330002974,1718919041976,-500.0,0.00054794,120]
[330002975,1718919041987,-500.0,0.00054794,120]
[330002976,1718919041998,-500.0,0.00054794,120]
[330002977,1718919042007,-510.62181222,0.00054794,120]
[330002978,1718919042021,-340.54528223,0.00054794,120]
[330002979,1718919042030,-500.0,0.00054794,120]
[330002980,1718919042039,-500.0,0.00054794,120]
[330002981,1718919042048,-500.0,0.00054794,120]
[330002982,1718919042058,-500.0,0.00054794,120]
[330002983,1718919042068,-500.0,0.00054794,120]
[330002984,1718919042077,-500.0,0.00054794,120]
[330002985,1718919042086,-549.05891035,0.00054794,120]
[330002986,1718919042096,-500.0,0.00054794,120]
[330002987,1718919042106,-500.0,0.00054794,120]
[330002988,1718919042116,-501.33947497,0.00054794,120]
[330002989,1718919042125,-501.2803781,0.00054794,120]
[330002990,1718919042136,-797.93,0.00054794,120]
[330002991,1718919042147,-516.89371815,0.00054794,120]
[330002992,1718919042157,-500.0,0.00054794,120]
[330002993,1718919042166,-1074.82,0.00054794,120]
[330002994,1718919042175,-500.0,0.00054794,120]
[330002995,1718919042184,-500.0,0.00054794,120]
[330002996,1718919042193,-500.0,0.00054794,120]
[330002997,1718919042203,-500.0,0.00054794,14]
[330002998,1718919042212,-502.33659038,0.00054794,120]
[330002999,1718919042221,-1366.29,0.00054794,120]
[330003000,1718919042231,-500.0,0.00054794,120]
[330003001,1718919042242,-485.15802113,0.00054794,120]
[330003002,1718919042261,-14.84197887,0.00054794,120]
[330003003,1718919042270,-500.0,0.00054794,120]
[330003004,1718919042279,-500.0,0.00054794,120]
[330003005,1718919042289,-500.86,0.00054794,7]
[330003006,1718919042298,-500.0,0.00054794,120]
[330003007,1718919042307,-500.0,0.00054794,120]
[330003008,1718919042317,-500.0,0.00054794,120]
[330003009,1718919042326,-500.0,0.00054794,120]
[330003010,1718919042336,-2530.14,0.00054794,120]
[330003011,1718919042346,-500.0,0.00054794,120]
[330003012,1718919042355,-500.0,0.00054794,120]
[330003013,1718919042365,-239.0386631,0.00054794,120]
[330003014,1718919042375,-738.66,0.00054794,120]
[330003015,1718919042386,-500.0,0.00054794,120]
[330003016,1718919042396,-500.0,0.00054794,120]
[330003017,1718919042407,-328.83872673,0.00054794,120]
[330003018,1718919042416,-500.0,0.00054794,120]
[330003019,1718919042427,-168.902542,0.00054794,14]
[330003020,1718919042438,-502.84945173,0.00054794,120]
[330003021,1718919042450,-168.902542,0.00054794,14]
[330003022,1718919042462,-168.902542,0.00054794,14]
[330003023,1718919042472,-168.902542,0.00054794,14]
[330003024,1718919042551,-168.902542,0.00054794,14]
[330003025,1718919042560,-500.0,0.00054794,120]
[330003026,1718919042569,-168.902542,0.00054794,14]
[330003027,1718919042578,-168.902542,0.00054794,14]
[330003028,1718919042588,-168.902542,0.00054794,14]
[330003029,1718919042597,-168.902542,0.00054794,14]
[330003030,1718919042606,-168.902542,0.00054794,14]
[330003031,1718919042615,-151.0,0.00054794,14]
[330003032,1718919042624,-197.82348581,0.00054794,14]
[330003033,1718919042637,-88.29617119,0.00054794,14]
[330003034,1718919042647,-151.0,0.00054794,14]
[330003035,1718919042656,-286.119657,0.00054794,14]
[330003036,1718919042665,-109.1136391,0.00054794,14]
[330003055,1718919043512,-41.8863609,0.00054794,14]
[330003056,1718919043522,-286.119657,0.00054794,14]
[330003057,1718919043532,-151.0,0.00054794,14]
[330003058,1718919043541,-286.119657,0.00054794,14]
[330003059,1718919043550,-38.8069151,0.00054794,14]
[330003060,1718919043562,-112.1930849,0.00054794,14]
[330003061,1718919043572,-286.119657,0.00054794,14]
[330003062,1718919043582,-500.0,0.00054794,120]
[330003064,1718919043592,-151.0,0.00054794,14]
[330003065,1718919043602,-286.119657,0.00054794,14]
[330003066,1718919043611,-151.0,0.00054794,14]
[330003067,1718919043621,-286.119657,0.00054794,14]
[330003068,1718919043632,-151.0,0.00054794,14]
[330003069,1718919043643,-286.119657,0.00054794,14]
[330003070,1718919043653,-151.0,0.00054794,14]
[330003071,1718919043662,-286.119657,0.00054794,14]
[330003072,1718919043673,-151.0,0.00054794,14]
[330003073,1718919043684,-286.119657,0.00054794,14]
[330003074,1718919043695,-443.193579,0.00054794,14]
[330003075,1718919043705,-500.0,0.00054794,120]
[330003076,1718919043715,-443.193579,0.00054794,14]
[330003077,1718919043724,-443.193579,0.00054794,14]
[330003078,1718919043734,-443.193579,0.00054794,14]
[330003079,1718919043744,-443.193579,0.00054794,14]
[330003080,1718919043754,-500.0,0.00054794,120]
[330003081,1718919043765,-421.12640637,0.00054794,120]
[330003082,1718919043773,-443.193579,0.00054794,14]
[330003083,1718919043782,-443.193579,0.00054794,14]
[330003084,1718919043791,-443.193579,0.00054794,14]
[330003085,1718919043802,-347.15588962,0.00054794,14]
[330003086,1718919043816,-96.03768938,0.00054794,14]
[330003087,1718919043825,-443.193579,0.00054794,14]
[330003088,1718919043835,-302.35223563,0.00054794,120]
[330003089,1718919043844,-500.0,0.00054794,120]
[330003090,1718919043853,-500.0,0.00054794,120]
[330003091,1718919043862,-500.0,0.00054794,120]
[330003092,1718919043872,-500.0,0.00054794,120]
[330003093,1718919043881,-500.0,0.00054794,120]
[330003094,1718919043891,-500.0,0.00054794,120]
[330003095,1718919043900,-500.0,0.00054794,120]
[330003096,1718919043910,-1036.42,0.00054794,120]
[330003097,1718919043919,-505.98153399,0.00054794,120]
[330003098,1718919043929,-500.0,0.00054794,120]
[330003099,1718919043939,-500.0,0.00054794,120]
[330003100,1718919043947,-224.80720622,0.00054794,120]
[330003101,1718919043957,-500.0,0.00054794,120]
[330003102,1718919043966,-502.59675767,0.00054794,120]
[330003103,1718919043979,-500.0,0.00054794,120]
[330003104,1718919043988,-500.0,0.00054794,120]
[330003105,1718919043997,-500.0,0.00054794,120]
[330003106,1718919044007,-507.54754434,0.00054794,120]
[330003107,1718919044018,-549.8,0.00054794,120]
[330003108,1718919044027,-500.0,0.00054794,120]
[330003109,1718919044037,-500.0,0.00054794,120]
[330003110,1718919044046,-500.0,0.00054794,120]
[330003111,1718919044057,-500.0,0.00054794,120]
[330003112,1718919044066,-500.0,0.00054794,120]
[330003113,1718919044075,-500.0,0.00054794,120]
[330003114,1718919044085,-500.0,0.00054794,120]
[330003115,1718919044094,-500.0,0.00054794,120]
[330003116,1718919044104,-500.0,0.00054794,120]
[330003117,1718919044113,-500.0,0.00054794,120]
[330003118,1718919044122,-500.0,0.00054794,120]
[330003119,1718919044131,-1182.64,0.00054794,120]
[330003120,1718919044140,-500.0,0.00054794,120]
[330003121,1718919044149,-500.0,0.00054794,120]
[330003122,1718919044159,-500.0,0.00054794,120]
[330003123,1718919044169,-500.0,0.00054794,120]
[330003124,1718919044179,-500.0,0.00054794,120]
[330003125,1718919044188,-441.0436412,0.00054794,120]
[330003126,1718919044198,-500.0,0.00054794,120]
[330003127,1718919044207,-525.43255345,0.00054794,120]
[330003128,1718919044216,-500.0,0.00054794,120]
[330003129,1718919044226,-500.0,0.00054794,120]
[330003130,1718919044236,-500.0,0.00054794,120]
[330003131,1718919044306,-500.0,0.00054794,120]
[330003132,1718919044317,-500.0,0.00054794,120]
[330003133,1718919044328,-500.0,0.00054794,120]
[330003134,1718919044338,-786.1812591,0.00054794,120]
[330003135,1718919044352,-213.8187409,0.00054794,120]
[330003136,1718919044362,-500.0,0.00054794,120]
[330003137,1718919044372,-500.0,0.00054794,120]
[330003138,1718919044381,-286.1812591,0.00054794,120]
[330003162,1718919046729,-343.6,0.00054784,3]
[330003163,1718919046740,-227.4587409,0.00054794,120]
[330003164,1718919046750,-500.0,0.00054794,120]
[330003165,1718919046762,-2305.84,0.00054794,120]
[330003166,1718919046771,-429.28556907,0.00054794,120]
[330003174,1718920011293,-191.30504271,0.00017804,2]
[330003175,1718920041132,-300.0,0.00017804,2]
[330003176,1718920041156,-42155.97323627,0.00017805,2]
[330003177,1718920041178,-500.0,0.00019178,2]
[330003178,1718920041199,-568.43423013,0.00019178,2]
[330003179,1718920041220,-169.0,0.00019584,2]
[330003180,1718920041241,-305.55459832,0.00020996,2]
[330003181,1718920041260,-166.0669938,0.00021096,2]
[330003182,1718920041280,-170.9115572,0.00023745,2]
[330003183,1718920041300,-10914.19385436,0.00028154,2]
[330003184,1718920047106,-197.8629705,0.00028154,2]
[330003185,1718920047126,-771.23521298,0.00028154,2]
[330003186,1718920047148,-500.0,0.00029045,2]
[330003187,1718920047169,-426.96224085,0.00029045,2]
[330003188,1718920047191,-208.25671257,0.00029045,2]
[330003189,1718920047211,-305.5545983,0.00029106,2]
[330003190,1718920047232,-24900.0,0.00029237,2]
[330003191,1718920047252,-359.95225777,0.00031999,4]
[330003192,1718920047273,-426.3859472,0.00034765,2]
[330003193,1718920047293,-205.6359469,0.00034765,2]
[330003194,1718920047413,-205.6359469,0.00034765,2]
[330003195,1718920047434,-205.6359469,0.00034765,2]
[330003196,1718920047455,-205.2801701,0.00034765,2]
[330003197,1718920047475,-305.5545983,0.00037215,2]
[330003198,1718920047496,-17828.47743439,0.000425,60]
[330003199,1718920047517,-305.5545983,0.00045325,2]
[330003200,1718920047537,-160.0,0.000475,2]
[330003201,1718920047557,-320.92,0.00048489,3]
[330003202,1718920047577,-501.07,0.00048489,3]
[330003203,1718920047597,-417.56,0.00048489,3]
[330003204,1718920047617,-25481.5100392,0.0005,2]
[330003205,1718920047638,-284.5,0.00052161,90]
[330003206,1718920047658,-335.2,0.00052511,90]
[330003207,1718920047679,-152.0,0.00052511,90]
[330003208,1718920047701,-335.2,0.0005286,90]
[330003209,1718920047722,-152.0,0.0005286,90]
[330003210,1718920047742,-335.2,0.0005321,90]
[330003211,1718920047762,-152.0,0.0005321,90]
[330003212,1718920047786,-372.78673862,0.00053433,4]
[330003213,1718920047807,-305.5545983,0.00053434,2]
[330003214,1718920047827,-335.2,0.00053559,90]
[330003215,1718920047847,-152.0,0.00053559,90]
[330003216,1718920047867,-1751.0,0.00053777,2]
[330003217,1718920047888,-500.0,0.00053777,120]
[330003218,1718920047909,-491.40344127,0.00054,120]
[330003219,1718920047930,-8866.0,0.000543,120]
[330003220,1718920047950,-489.59252307,0.00054358,4]
[330003221,1718920047970,-347.97,0.00054468,3]
[330003222,1718920047991,-172.62659738,0.00054477,4]
[330003223,1718920048013,-8595.94047119,0.00054478,2]
[330003224,1718920053135,-1813.00933508,0.00042499,4]
[330003225,1718920145107,-155.01550155,0.0002158,2]
[330003226,1718920145127,-1302.91494826,0.00039,30]
[330003227,1718920145147,-303.5385911,0.00040998,31]
[330003228,1718920145167,-182.98381751,0.00040998,31]
[330003229,1718920145186,-17942.05142158,0.00040999,4]
[330003230,1718920149983,-42155.97323627,0.00019999,2]
[330003231,1718920150004,-36572.28658617,0.00040999,4]
[330003232,1718920150027,-151.87451588,0.00043166,30]
[330003233,1718920159965,7542.33118992,0.00039582,4]
[330003234,1718920174114,-31545.211,0.00039582,4]
[330003235,1718920174142,-8612.50356686,0.00039582,4]
[330003262,1718920232881,-1344.41890861,0.00029045,120]
[330003264,1718920232890,-42.84038446,0.00029045,2]
[330003266,1718920232903,-112.42224803,0.00029045,2]
[330003268,1718920232912,-2566.09420728,0.00029045,2]
[330003270,1718920232922,-1751.0,0.00053777,2]
[330003272,1718920232933,-244.039,0.00053777,120]
[330003274,1718920232942,-520.10039898,0.00054439,4]
[330003276,1718920232951,-5511.18705431,0.00054478,2]
[330003279,1718920232973,-8505.43224576,0.00054478,2]
[330003282,1718920232985,-1734.89547167,0.000545,2]
[330003284,1718920232996,-2000.0,0.00054694,2]
[330003286,1718920233005,-21218.04107297,0.00054694,5]
[330003288,1718920233015,-252.0,0.000547,33]
[330003290,1718920233025,-160.0,0.000547,50]
[330003292,1718920233035,-150.5,0.00054765,62]
[330003308,1718920233177,-150.5,0.00054775,62]
[330003310,1718920233186,-289.97,0.00054783,3]
[330003312,1718920233196,-241.64,0.00054783,3]
[330003314,1718920233206,-201.37,0.00054783,3]
[330003316,1718920233215,-150.5,0.00054785,62]
[330003318,1718920233224,-151.0,0.00054793,14]
[330003320,1718920233233,-151.0,0.00054793,14]
[330003322,1718920233242,-1571.581726,0.00054793,14]
[330003324,1718920233251,-151.0,0.00054793,14]
[330003326,1718920233260,-1571.581726,0.00054793,14]
[330003328,1718920233269,-151.0,0.00054793,14]
[330003330,1718920233278,-877.253739,0.00054793,14]
[330003332,1718920233287,-877.253739,0.00054793,14]
[330003334,1718920233296,-151.0,0.00054793,14]
[330003336,1718920233305,-151.0,0.00054793,14]
[330003337,1718920233314,-151.0,0.00054793,14]
[330003339,1718920233323,-3111.51,0.00054793,60]
[330003340,1718920233332,-3111.51,0.00054793,60]
[330003341,1718920233342,-3111.51,0.00054793,60]
[330003342,1718920233351,-3111.51,0.00054793,60]
[330003343,1718920233361,-3111.51,0.00054793,60]
[330003345,1718920233370,-3111.51,0.00054793,60]
[330003347,1718920233384,-432.58030525,0.00054793,60]
[330003362,1718920238635,-210.477,0.00053777,120]
[330003363,1718920238644,-167.81,0.00054783,3]
[330003364,1718920238654,-1630.87898843,0.00054793,60]
[330003365,1718920238666,-1048.05070632,0.00054793,60]
[330003366,1718920238675,-43.77009439,0.00054793,60]
[330003373,1718920239203,-3067.73990561,0.00054793,60]
[330003374,1718920239213,-3111.51,0.00054793,60]
[330003375,1718920239223,-3111.51,0.00054793,60]
[330003376,1718920239233,-3111.51,0.00054793,60]
[330003377,1718920239243,-3111.51,0.00054793,60]
[330003378,1718920239254,-3111.51,0.00054793,60]
[330003379,1718920239263,-3111.51,0.00054793,60]
[330003380,1718920239274,-3111.51,0.00054793,60]
[330003381,1718920239283,-240.4426529,0.00054793,60]
[330003382,1718920239296,-1711.78932954,0.00054793,60]
[330003385,1718920240954,-260.2995,0.00054793,60]
[330003386,1718920240966,-898.97851756,0.00054793,60]
[330003387,1718920240976,-3111.51,0.00054793,60]
[330003388,1718920240986,-3111.51,0.00054793,60]
[330003389,1718920240995,-3111.51,0.00054793,60]
[330003390,1718920241005,-3111.51,0.00054793,60]
[330003391,1718920241015,-3111.51,0.00054793,60]
[330003392,1718920241025,-3111.51,0.00054793,60]
[330003393,1718920241035,-3111.51,0.00054793,60]
[330003394,1718920241045,-3111.58969879,0.00054793,60]
[330003395,1718920241055,-211.36576768,0.00054794,61]
[330003396,1718920241065,-500.0,0.00054794,120]
[330003397,1718920241075,-607.14,0.00054794,120]
[330003398,1718920241085,-500.0,0.00054794,120]
[330003399,1718920241095,-500.0,0.00054794,120]
[330003400,1718920241105,-500.0,0.00054794,120]
[330003401,1718920241117,-501.77279686,0.00054794,120]
[330003402,1718920241128,-500.0,0.00054794,120]
[330003403,1718920241138,-500.0,0.00054794,120]
[330003404,1718920241150,-500.0,0.00054794,120]
[330003405,1718920241161,-500.0,0.00054794,120]
[330003406,1718920241170,-584.47548196,0.00054794,120]
[330003407,1718920241181,-500.0,0.00054794,120]
[330003408,1718920241195,-500.0,0.00054794,120]
[330003409,1718920241205,-500.0,0.00054794,120]
[330003410,1718920241216,-500.0,0.00054794,120]
[330003411,1718920241227,-500.0,0.00054794,120]
[330003412,1718920241237,-500.0,0.00054794,120]
[330003413,1718920241246,-541.60827635,0.00054794,120]
[330003414,1718920241256,-500.0,0.00054794,120]
[330003415,1718920241266,-500.0,0.00054794,120]
[330003416,1718920241275,-500.0,0.00054794,120]
[330003417,1718920241284,-500.0,0.00054794,120]
[330003418,1718920241294,-501.93038849,0.00054794,120]
[330003419,1718920241303,-500.0,0.00054794,120]
[330003420,1718920241313,-500.0,0.00054794,120]
[330003421,1718920241323,-500.0,0.00054794,120]
[330003422,1718920241332,-500.0,0.00054794,120]
[330003423,1718920241342,-505.03229306,0.00054794,120]
[330003424,1718920241352,-503.51552768,0.00054794,120]
[330003425,1718920241361,-500.0,0.00054794,120]
[330003426,1718920241370,-500.0,0.00054794,120]
[330003427,1718920241383,-500.0,0.00054794,120]
[330003428,1718920241393,-500.0,0.00054794,120]
[330003429,1718920241403,-500.0,0.00054794,120]
[330003430,1718920241412,-500.0,0.00054794,120]
[330003431,1718920241423,-505.05415202,0.00054794,120]
[330003432,1718920241433,-500.0,0.00054794,120]
[330003433,1718920241445,-500.0,0.00054794,120]
[330003434,1718920241455,-536.54,0.00054794,120]
[330003435,1718920241467,-728.71,0.00054794,120]
[330003436,1718920241477,-500.0,0.00054794,120]
[330003437,1718920241487,-500.0,0.00054794,120]
[330003438,1718920241497,-209.48153862,0.00054794,120]
[330003439,1718920241506,-281.84427593,0.00054794,120]
[330003440,1718920241515,-364.61927956,0.00054794,120]
[330003441,1718920241531,-135.38072044,0.00054794,120]
[330003442,1718920241540,-500.0,0.00054794,120]
[330003443,1718920241549,-508.20854798,0.00054794,120]
[330003444,1718920241559,-500.0,0.00054794,120]
[330003445,1718920241568,-500.0,0.00054794,120]
[330003446,1718920241577,-500.0,0.00054794,120]
[330003447,1718920241587,-500.0,0.00054794,120]
[330003448,1718920241596,-518.15210515,0.00054794,120]
[330003449,1718920241606,-500.0,0.00054794,120]
[330003450,1718920241616,-500.0,0.00054794,120]
[330003451,1718920241625,-500.0,0.00054794,120]
[330003452,1718920241635,-500.0,0.00054794,120]
[330003453,1718920241644,-500.0,0.00054794,120]
[330003454,1718920241653,-500.0,0.00054794,120]
[330003455,1718920241663,-500.0,0.00054794,120]
[330003456,1718920241673,-500.0,0.00054794,120]
[330003457,1718920241683,-500.0,0.00054794,120]
[330003458,1718920241694,-500.0,0.00054794,120]
[330003459,1718920241703,-416.43150822,0.00054794,120]
[330003460,1718920241721,-83.56849178,0.00054794,120]
[330003461,1718920241731,-440.7201526,0.00054794,120]
[330003462,1718920241741,-447.41067231,0.00054794,120]
[330003463,1718920241751,-500.0,0.00054794,120]
[330003464,1718920241761,-500.0,0.00054794,120]
[330003465,1718920241771,-500.0,0.00054794,120]
[330003466,1718920241781,-500.0,0.00054794,120]
[330003467,1718920241791,-500.0,0.00054794,120]
[330003468,1718920241800,-500.0,0.00054794,120]
[330003469,1718920241809,-835.56,0.00054794,120]
[330003470,1718920241819,-701.46,0.00054794,120]
[330003471,1718920241828,-151.0,0.00054794,14]
[330003472,1718920241838,-151.0,0.00054794,14]
[330003473,1718920241848,-151.0,0.00054794,14]
[330003474,1718920241926,-151.0,0.00054794,14]
[330003475,1718920241938,-151.0,0.00054794,14]
[330003476,1718920241947,-151.0,0.00054794,14]
[330003477,1718920241956,-151.0,0.00054794,14]
[330003478,1718920241965,-157.527695,0.00054794,14]
[330003479,1718920241975,-639.82311533,0.00054794,120]
[330003480,1718920241984,-500.0,0.00054794,120]
[330003481,1718920241993,-1357.33,0.00054794,120]
[330003482,1718920242002,-1357.33,0.00054794,120]
[330003483,1718920242011,-503.00577325,0.00054794,120]
[330003484,1718920242020,-1357.33,0.00054794,120]
[330003485,1718920242030,-1357.33,0.00054794,120]
[330003486,1718920242039,-1357.33,0.00054794,120]
[330003487,1718920242048,-1357.33,0.00054794,120]
[330003488,1718920242059,-503.97337733,0.00054794,120]
[330003489,1718920242068,-1357.33,0.00054794,120]
[330003490,1718920242078,-1357.33,0.00054794,120]
[330003491,1718920242088,-1357.33,0.00054794,120]
[330003492,1718920242102,-1357.33,0.00054794,120]
[330003493,1718920242111,-500.0,0.00054794,120]
[330003494,1718920242120,-1357.33,0.00054794,120]
[330003495,1718920242130,-1357.33,0.00054794,120]
[330003496,1718920242140,-1357.33,0.00054794,120]
[330003497,1718920242150,-1357.33,0.00054794,120]
[330003498,1718920242159,-1357.33,0.00054794,120]
[330003499,1718920242168,-1357.33,0.00054794,120]
[330003500,1718920242177,-643.78174786,0.00054794,120]
[330003509,1718920243890,-164.371,0.00053777,120]
[330003510,1718920243900,-194.12901,0.00054794,120]
[330003512,1718920243913,-519.41924214,0.00054794,120]
[330003513,1718920243922,-1357.33,0.00054794,120]
[330003514,1718920243931,-638.95191581,0.00054794,120]
[330003515,1718920243951,-313.7172,0.00054794,120]
[330003523,1718920246996,-404.66088419,0.00054794,120]
[330003524,1718920247005,-1357.33,0.00054794,120]
[330003525,1718920247014,-1357.33,0.00054794,120]
[330003526,1718920247024,-1357.33,0.00054794,120]
[330003527,1718920247034,-1357.33,0.00054794,120]
[330003528,1718920247044,-676.11911581,0.00054794,120]
[330003529,1718920247139,-681.37413829,0.00054794,120]
[330003530,1718920247149,-667.79,0.00054794,120]
[330003531,1718920247158,-667.79,0.00054794,120]
[330003532,1718920247167,-667.79,0.00054794,120]
[330003533,1718920247176,-667.79,0.00054794,120]
[330003534,1718920247186,-667.79,0.00054794,120]
[330003535,1718920247196,-667.79,0.00054794,120]
[330003536,1718920247205,-667.79,0.00054794,120]
[330003537,1718920247219,-667.79,0.00054794,120]
[330003538,1718920247228,-667.79,0.00054794,120]
[330003539,1718920247237,-667.79,0.00054794,120]
[330003540,1718920247245,-667.79,0.00054794,120]
[330003541,1718920247255,-667.79,0.00054794,120]
[330003542,1718920247263,-667.79,0.00054794,120]
[330003543,1718920247272,-667.79,0.00054794,120]
[330003544,1718920247281,-667.79,0.00054794,120]
[330003545,1718920247290,-667.79,0.00054794,120]
[330003546,1718920247298,-667.79,0.00054794,120]
[330003547,1718920247308,-667.79,0.00054794,120]
[330003548,1718920247316,-667.79,0.00054794,120]
[330003549,1718920247326,-667.79,0.00054794,120]
[330003550,1718920247334,-667.79,0.00054794,120]
[330003551,1718920247343,-667.79,0.00054794,120]
[330003552,1718920247352,-667.79,0.00054794,120]
[330003553,1718920247361,-668.00706709,0.00054794,120]
[330003554,1718920247369,-500.0,0.00054794,120]
[330003555,1718920247384,-500.0,0.00054794,120]
[330003556,1718920247394,-758.64,0.00054794,120]
[330003557,1718920247403,-758.64,0.00054794,120]
[330003558,1718920247412,-758.64,0.00054794,120]
[330003559,1718920247423,-508.32165735,0.00054794,120]
[330003560,1718920247433,-758.64,0.00054794,120]
[330003561,1718920247443,-758.64,0.00054794,120]
[330003562,1718920247452,-758.64,0.00054794,120]
[330003564,1718920247463,-758.64,0.00054794,120]
[330003566,1718920247472,-758.64,0.00054794,120]
[330003568,1718920247482,-758.64,0.00054794,120]
[330003569,1718920247492,-758.64,0.00054794,120]
[330003570,1718920247501,-196.09616635,0.00054794,120]
[330003571,1718920247510,-758.64,0.00054794,120]
[330003572,1718920247519,-758.64,0.00054794,120]
[330003573,1718920247529,-758.64,0.00054794,120]
[330003574,1718920247538,-758.64,0.00054794,120]
[330003575,1718920247548,-758.64,0.00054794,120]
[330003576,1718920247557,-758.64,0.00054794,120]
[330003577,1718920247567,-500.0,0.00054794,120]
[330003578,1718920247577,-758.64,0.00054794,120]
[330003579,1718920247586,-500.0,0.00054794,120]
[330003580,1718920247595,-758.64,0.00054794,120]
[330003581,1718920247605,-758.64,0.00054794,120]
[330003582,1718920247614,-758.64,0.00054794,120]
[330003583,1718920247623,-758.64,0.00054794,120]
[330003584,1718920247632,-758.64,0.00054794,120]
[330003585,1718920247641,-758.64,0.00054794,120]
[330003586,1718920247651,-758.79647093,0.00054794,120]
[330003587,1718920247660,-432.61683931,0.00054794,120]
[330003588,1718920247669,-500.0,0.00054794,120]
[330003589,1718920247679,-914.49,0.00054794,120]
[330003590,1718920247688,-500.0,0.00054794,120]